{"text_format":"1","workbook":"xlsx","n_sheets":3,"sheets":["Formblatt","Muster","Erläuterung zum Zeitraum"],"not_rendered":{"charts":0,"images":0,"macros":1,"external_links":0,"defined_names":0,"comments":1,"pivot_tables":0},"unopened":[],"bounds":{"document_bytes":16777216,"sheet_cells":100000,"rows_first":2000,"rows_last":500,"rows_between":2000,"halvings":0,"cell_chars":16384,"cell_head_chars":4096},"cells_cut":0,"cells_raw":0,"read":"whole","date_system":"1900"}

{"sheet":"Formblatt","index":0,"n_rows":54,"n_cols":6,"rows_kept":54,"cut":false,"hidden":false,"merged":[[0,0,0,5],[15,0,15,2],[15,4,15,5],[2,1,2,3],[4,1,4,3],[6,1,6,3],[22,1,22,2],[23,1,23,2],[49,1,49,2],[16,0,16,2],[17,1,17,2],[18,1,18,2],[19,1,19,2],[20,1,20,2],[21,1,21,2],[24,1,24,2],[25,1,25,2],[26,1,26,2],[27,1,27,2],[28,1,28,2],[29,1,29,2],[30,1,30,2],[31,1,31,2],[32,1,32,2],[33,1,33,2],[34,1,34,2],[35,1,35,2],[36,1,36,2],[37,1,37,2],[38,1,38,2],[39,1,39,2],[40,1,40,2],[46,1,46,2],[47,1,47,2],[48,1,48,2],[41,1,41,2],[42,1,42,2],[43,1,43,2],[44,1,44,2],[45,1,45,2]]}
["Allokation im Falle einer L-/H-Gas-Marktraumumstellung\nTeilbilanz gem. KoV § 9 (1) f) im Zeitraum zwischen bilanziellem Umstellungstermin und Abgrenzungsstichtag"]
[]
["Netzbetreiber:"]
[]
["Netzkonto:"]
[]
["Umstellgebiet:"]
[]
["Bilanzieller Umstellungstermin:"]
[]
["Abgrenzungsstichtag:"]
[]
["Anzahl Tage: "]
[]
[]
["Allokationsmengen - Vom Netzbetreiber auszufüllen",null,null,null,"Regelenergiekosten - vom MGV auszufüllen"]
["Allokationssumme der umstellrelevanten Marktlokationen\n\n\n\nAusfüll-Hinweis: \n- Einspeisemengen aus vorgelagerten Netzen und Biogas-/ Wasserstoffanlagen sowie Ausspeisemengen an nachgelagerte Netze werden in der Teilbilanz nicht berücksichtigt;\n",null,null,null,"Tägliche Preisdifferenz zwischen den H-Gas und L-Gas Quality Produkten gem. Rang 2 MOL\n\nAusfüll-Hinweis:\n\n - Bilanzieller Umstellungstermin = 1. des Folgemonats nach dem Abgrenzungs-stichtag, Es ist die Preisdifferenz zwischen L-Gas (Sell) und H-Gas (Buy) heranzuziehen","Kosten externe Regelenergie\n\n\n\nBerechnungs-Hinweis:\n- Übersteigen die Kosten des MGV die Erlöse, ergibt sich ein Rechnungsbetrag des MGV an den NB;\n\n- Übersteigen die Erlöse des MGV die Kosten, ergibt sich ein Gutschriftsbetrag des MGV an den NB"]
["Zeitraum\n\n[Gastag]","Tagessumme\ngesamt\n\n[kWh/d]",null,null,"Tägliche Preisdifferenz\n\n[€/kWh]","Betrag \n\n[€]"]
[null,null,null,null,null,{"$f":"IF(E19=\"Keine Regelenergie\",0,B19*E19)","v":0}]
[null,null,null,null,null,{"$f":"IF(E20=\"Keine Regelenergie\",0,B20*E20)","v":0}]
[null,null,null,null,null,0]
[null,null,null,null,null,0]
[null,null,null,null,null,0]
[null,null,null,null,null,0]
[null,null,null,null,null,0]
[null,null,null,null,null,0]
[null,null,null,null,null,0]
[null,null,null,null,null,0]
[null,null,null,null,null,0]
[null,null,null,null,null,0]
[null,null,null,null,null,0]
[null,null,null,null,null,0]
[null,null,null,null,null,{"$f":"IF(E33=\"Keine Regelenergie\",0,B33*E33)","v":0}]
[null,null,null,null,null,0]
[null,null,null,null,null,0]
[null,null,null,null,null,0]
[null,null,null,null,null,0]
[null,null,null,null,null,0]
[null,null,null,null,null,0]
[null,null,null,null,null,0]
[null,null,null,null,null,0]
[null,null,null,null,null,0]
[null,null,null,null,null,0]
[null,null,null,null,null,0]
[null,null,null,null,null,0]
[null,null,null,null,null,0]
[null,null,null,null,null,0]
[null,null,null,null,null,0]
[null,null,null,null,null,0]
["Gesamt",{"$f":"SUM(B19:B49)","v":0},null,null,null,{"$f":"SUM(F19:F49)","v":0}]
[]
[]
[]
["Datum:",null,null,null,"Datum:"]

{"sheet":"Muster","index":1,"n_rows":32,"n_cols":6,"rows_kept":32,"cut":false,"hidden":false,"merged":[[6,1,6,3],[0,0,0,5],[15,0,15,2],[15,4,15,5],[2,1,2,3],[4,1,4,3],[22,1,22,2],[25,1,25,2],[26,1,26,2],[27,1,27,2],[16,0,16,2],[17,1,17,2],[18,1,18,2],[19,1,19,2],[20,1,20,2],[21,1,21,2],[23,1,23,2],[24,1,24,2]]}
["Allokation im Falle einer L-/H-Gas-Marktraumumstellung\nTeilbilanz gem. KoV § 9 (1) f) im Zeitraum zwischen bilanziellem Umstellungstermin und Abgrenzungsstichtag"]
[]
["Netzbetreiber:","Musternetzbetreiber"]
[]
["Netzkonto:","NCLN007123450000"]
[]
["Umstellgebiet:","Mustergebietsname"]
[]
["Bilanzieller Umstellungstermin:","2017-04-01"]
[]
["Abgrenzungsstichtag:","2017-03-23"]
[]
[]
[]
[]
["Allokationsmengen - Vom Netzbetreiber auszufüllen",null,null,null,"Regelenergiekosten - vom MGV auszufüllen"]
["Allokationssumme der umstellrelevanten Marktlokationen\n\n\n\nAusfüll-Hinweis: \n- Einspeisemengen aus vorgelagerten Netzen und Biogas-/ Wasserstoffanlagen sowie Ausspeisemengen an nachgelagerte Netze werden in der Teilbilanz nicht berücksichtigt;\n",null,null,null,"Tägliche Preisdifferenz zwischen den H-Gas und L-Gas Quality Produkten gem. Rang 2 MOL\n\nAusfüll-Hinweis:\n\n - Bilanzieller Umstellungstermin = 1. des Folgemonats nach dem Abgrenzungs-stichtag, Es ist die Preisdifferenz zwischen L-Gas (Sell) und H-Gas (Buy) heranzuziehen","Kosten externe Regelenergie\n\n\n\nBerechnungs-Hinweis:\n- Übersteigen die Kosten des MGV die Erlöse, ergibt sich ein Rechnungsbetrag des MGV an den NB;\n\n- Übersteigen die Erlöse des MGV die Kosten, ergibt sich ein Gutschriftsbetrag des MGV an den NB"]
["Zeitraum\n\n[Gastag]","Tagessumme\ngesamt\n\n[kWh/d]",null,null,"Tägliche Preisdifferenz\n\n[€/kWh]","Betrag \n\n[€]"]
["2017-03-23",179601.74364099899,79601.743640999848,null,5.5999999999999999E-3,{"$f":"B19*E19","v":1005.7697643895943}]
["2017-03-24",196768.217619,96768.217619000061,null,"Keine Regelenergie",0]
["2017-03-25",184315.832234,84315.832234000001,null,2.8999999999999998E-3,{"$f":"B21*E21","v":534.51591347859994}]
["2017-03-26",184607.63409800001,84607.634098000126,null,1.8E-3,{"$f":"B22*E22","v":332.29374137640002}]
["2017-03-27",213377.11678499999,113377.11678499983,null,2.2000000000000001E-3,{"$f":"B23*E23","v":469.429656927}]
["2017-03-28",242088.94910599999,142088.94910600031,null,"Keine Regelenergie",0]
["2017-03-29",182811.21879899991,182811.21879899991,null,"Keine Regelenergie",0]
["2017-03-30",209048.79287500007,209048.79287500007,null,"Keine Regelenergie",0]
["2017-03-31",186800.48154900016,186800.48154900016,null,1.9E-3,{"$f":"B27*E27","v":354.92091494310029}]
["Gesamt",{"$f":"SUM(B19:C27)","v":2958839.9734120006},null,null,null,{"$f":"SUM(F19:F27)","v":2696.929991114695}]
[]
[]
[]
["Datum:",null,null,null,"Datum:"]

{"sheet":"Erläuterung zum Zeitraum","index":2,"n_rows":21,"n_cols":7,"rows_kept":21,"cut":false,"hidden":false,"merged":[[6,5,14,5],[2,2,2,3],[3,4,3,5]]}
["Beispiel: Bilanzieller Umstellungstermin 01.04.2017, Abgrenzungsstichtag 23.03.2017 *)"]
[]
[null,null,"Gasqualität"]
["Ereignis","Gastag","Bilanzierung","Physischer Fluss","Tage für Teilbilanz",null,"Bemerkung"]
[]
["…","2017-03-22","L","L","-","-"]
["Abgrenzungs-T.","2017-03-23","L","L / H *)",{"$f":"B7","v":"2017-03-23"},9,"Zählt mit zum Zeitraum"]
["…","…","L","H",{"$f":"E7+1","v":"2017-03-24"}]
["…","…","L","H","2017-03-25"]
["…","…","L","H","2017-03-26"]
["…","…","L","H","2017-03-27"]
["…","…","L","H","2017-03-28"]
["…","…","L","H","2017-03-29"]
["…","…","L","H","2017-03-30"]
["…","…","L","H","2017-03-31"]
["Bilanzieller T.","2017-04-01","H","H","-","-","Bilanzieller Termin zählt nicht mit zum Zeitraum"]
[]
[]
[]
[]
["*) \"Abgrenzungsstichtag\" = Tag der Änderung der Gasqualität; im Tagesverlauf steht H-Gas beim Letztverbraucher an"]